Cogmind - Beta 17.1 @@@ ROGUE MODE // 2026.09.24 @ 17:54:44 Player: MEOWRTGM Result: Destroyed by D-53 Grenadier with Mini Grenade Launcher Performance ------------- Evolutions (0) 0 Regions Visited (2) 400 Robots Destroyed (22) 110 Value Destroyed (470) 470 Prototype IDs (2) 40 Alien Tech Used (0) 0 Bonus (0) 0 TOTAL SCORE: 1020 Bonus ------- None Cogmind --------- Core Integrity 0/250 Matter 238/300 Energy 100/100 System Corruption 0% Temperature Cool (0) Movement Core (50) Location -10/Mines Parts ------- > --- POWER (1) -------- (None) > --- PROPULSION (2) --- (None) > --- UTILITY (2) ------ (None) > --- WEAPON (2) ------- (None) > --- INVENTORY (5) ---- Aluminum Leg Hacking Suite Light Assault Rifle Datajack Mining Laser Peak State ------------ > --- POWER ------------ Light Ion Engine > --- PROPULSION ------- Light Treads Compact Wheel > --- UTILITY ---------- Improved Heat Sink High-capacity Storage Unit > --- WEAPON ----------- Medium Laser Small Laser > --- INVENTORY -------- Light Ion Engine Aluminum Leg Huge Storage Unit Hacking Suite EM Pulse Gun Light Assault Rifle Grenade Launcher Datajack [Rating: 10] Favorites ----------- Power Ion Engine Engine Ion Engine Propulsion Light Treads Treads Light Treads Wheel Compact Wheel Utility High-capacity Storage Unit Device Seismic Detector Storage High-capacity Storage Unit Protection Light Armor Plating Weapon Light Assault Rifle Energy Gun Medium Laser Ballistic Gun Light Assault Rifle Launcher Grenade Launcher Build | -11 -10 -10 ------- Run | Yrd Mat Min Slots Evolved . | . . . Power . | . . . Propulsion . | . . . Utility . | . . . Weapon . | . . . Parts Attached 23 | 7 9 7 Power 4 | 1 1 2 Engine 4 | 1 1 2 Core . | . . . Reactor . | . . . Propulsion 5 | 2 1 2 Treads 4 | 2 1 1 Leg . | . . . Wheel 1 | . . 1 Hover . | . . . Flight . | . . . Utility 7 | 2 3 2 Device 2 | 1 . 1 Storage 3 | 1 2 . Processor . | . . . Hackware . | . . . Protection 2 | . 1 1 Artifact . | . . . Weapon 7 | 2 4 1 Energy Gun 4 | 1 2 1 Energy Cannon . | . . . Ballistic Gun 2 | 1 1 . Ballistic Cannon . | . . . Launcher 1 | . 1 . Special Weapon . | . . . Impact Weapon . | . . . Slashing Weapon . | . . . Piercing Weapon . | . . . Special Melee Weapon . | . . . Unidentified Prototypes . | . . . Parts Lost 15 | . 4 11 Power 4 | . 1 3 Propulsion 5 | . 1 4 Utility 3 | . 1 2 Weapon 3 | . 1 2 Highest Loss Streak 5 | . 2 5 To Critical Strikes . | . . . Average Backups 7 | 1 7 8 Power 1 | . 1 1 Propulsion . | . 1 . Utility 1 | . 1 2 Weapon 2 | . 2 3 Tool/Special . | . . . Unused Backups 4 | . . 4 Power . | . . . Propulsion 1 | . . 1 Utility 1 | . . 1 Weapon 1 | . . 1 Tool/Special 1 | . . 1 Average Slot Usage (%) 94 | . 99 87 Engine 12 | . 14 9 Treads 24 | . 28 18 Wheel 2 | . . 5 Device 10 | . 12 6 Storage 14 | . 14 14 Protection 2 | . 1 4 Energy Gun 14 | . 9 20 Ballistic Gun 12 | . 17 4 Launcher 1 | . . 3 Peak Build Rating 10 | 7 8 10 Average Rating 7 | 4 7 7 On Entrance 4 | . 7 7 Avg Prop Armor Cover (%) 14 | . . 14 Naked Turns 1 | . . 1 Heaviest Build 51 | 14 51 51 Greatest Support 40 | 40 40 40 Greatest Overweight (x) 2 | . 1 2 Average Overweight (x) 1 | . . 1 Largest Inventory Capacity 25 | 8 25 20 Average Capacity 17 | 7 17 19 Most Carried 10 | 2 10 10 Average Carried 7 | 1 7 8 Final Capacity 20 | 8 20 5 Final Carried 9 | 2 9 5 Class Distribution -------------------- 100% | Mutant Dominant Class ---------------- Mutant | -10/Materials Mutant | -10/Mines Resources | -11 -10 -10 ----------- Run | Yrd Mat Min Matter Collected 510 | 222 215 73 Remotely . | . . . Salvage Created 718 | 103 472 143 Parts 47 | 17 24 6 Haulers Intercepted 1 | . 1 . Recyclers Shooed . | . . . Parts Field Recycled . | . . . Retrieved Matter . | . . . Parts Self-Destructed . | . . . Prevented . | . . . Parts Restored . | . . . Kills | -11 -10 -10 ------- Run | Yrd Mat Min Combat Hostiles Destroyed 28 | . 11 17 Guns 13 | . 11 2 AOE 15 | . . 15 Classes Destroyed 7 | 1 4 2 Worker 1 | . . 1 Tunneler 6 | 6 . . Hauler 1 | . 1 . Watcher 1 | . 1 . Swarmer 3 | . 3 . Grunt 10 | . 8 2 Assembled 15 | . . 15 Best Kill Streak 15 | 5 5 15 Combat Bots Only 15 | . 5 15 Max Kills in Single Turn 4 | 1 1 4 Gunslinging . | . . . Exploded 4 | . . 4 Melee . | . . . Uniques/NPCs Destroyed . | . . . Combat | -11 -10 -10 -------- Run | Yrd Mat Min Hostile Shots Fired 117 | . 68 49 Missed 22 | . 13 9 Hits 95 | . 55 40 Melee 2 | . . 2 Projectile 93 | . 55 38 AOE 14 | . . 14 Critical Strikes 1 | . . 1 Damage Taken 1670 | . 681 989 Core 251 | . 75 176 Absorbed by Shields . | . . . Core Remaining (%) 100 | 100 . . Volleys Fired 87 | 11 51 25 Largest 2 | 2 2 2 Hottest 90 | 70 70 90 Shots Fired 162 | 22 101 39 Gun 152 | 22 100 30 Cannon . | . . . Launcher 10 | . 1 9 Special . | . . . Kinetic 94 | 11 72 11 Thermal 56 | 11 26 19 Explosive 10 | . 1 9 Electromagnetic 2 | . 2 . Robot Hit Streak 12 | 5 12 4 Robot Miss Streak 3 | 1 2 3 Penetration Max . | . . . Secondary Targets 2 | . 1 1 Max Gunslinging Chain 1 | . 1 1 Shots Hit Robots 110 | 13 73 24 Core Hits 74 | 7 28 39 Critical Kills . | . . . Critical Parts Destroyed 1 | . 1 . Critical Strikes 5 | 1 4 . Burn 4 | 1 3 . Destroy 1 | . 1 . Melee Attacks . | . . . Impact . | . . . Slashing . | . . . Piercing . | . . . Sneak Attacks . | . . . Combat Hostiles . | . . . Follow-up Attacks . | . . . Damage Inflicted 1984 | 143 677 1164 Guns 986 | 143 663 180 Cannons . | . . . Explosions 973 | . . 973 Melee . | . . . Ramming 25 | . 14 11 Kinetic 540 | 57 434 49 Thermal 421 | 86 204 131 Explosive 973 | . . 973 Electromagnetic 25 | . 25 . Impact . | . . . Slashing . | . . . Piercing . | . . . Highest Corruption . | . . . Average Corruption . | . . . Corruption Purged . | . . . Corruption Blocked . | . . . Overload Shots . | . . . Overflow Damage 72 | . . 72 Projectiles . | . . . Explosions 72 | . . 72 Melee . | . . . Knockbacks . | . . . Impact . | . . . Kinetic . | . . . Secondary . | . . . Self-Inflicted Damage 58 | . . 58 Shots 4 | . . 4 Rammed 7 | . 4 3 Targets Rammed 7 | . 4 3 Kicked . | . . . Crushed . | . . . Highest Temperature 324 | 70 224 324 Average Temperature 75 | 27 55 151 Received Heat Transfer 568 | . 321 247 Effects 2 | . . 2 Energy Bleed 2 | . . 2 Siege Activations . | . . . Martial Activations . | . . . Shielding Activations . | . . . Robots Disrupted . | . . . Combat Hostiles . | . . . Robots Corrupted . | . . . Combat Hostiles . | . . . Parts Fried . | . . . Impact Corruptions . | . . . Robots Melted . | . . . Combat Hostiles . | . . . Parts Melted 5 | 2 2 1 Heat Transferred 1506 | 333 814 359 Parts Sabotaged . | . . . Parts Stolen . | . . . Parts Stripped . | . . . Power Chain Reactions . | . . . Alert | -11 -10 -10 ------- Run | Yrd Mat Min Maximum Alert Level . | . . . Low Security (%) 100 | 100 100 100 Level 1 . | . . . Level 2 . | . . . Level 3 . | . . . Level 4 . | . . . Level 5 . | . . . High Security . | . . . Max Security . | . . . Peak Influence 82 | 15 82 30 Initial 25 | . 3 25 Average 11 | 1 19 2 Influence Increases 439 | 30 322 87 Destroy 0b10 Robot/C 260 | . 220 40 Destroy 0b10 Robot/NC 45 | 30 10 5 Destroy Leader 64 | . 54 10 Allied During Kill 1 | . . 1 Successful Hack 30 | . 30 . Destroy Structure 39 | . 8 31 Influence Decreases 439 | 25 261 153 Entered New Map 43 | . 2 41 Time Decay 315 | 25 229 61 Lost Part 71 | . 30 41 Lost Ally 10 | . . 10 Squads Dispatched 2 | . 2 . Investigation . | . . . Extermination . | . . . Reinforcement 2 | . 2 . Assault . | . . . Garrison . | . . . Intercept . | . . . Searches Triggered . | . . . Construction Impeded . | . . . Haulers Reinforced . | . . . Active Scanning Responses . | . . . Cargo Convoy Interrupts . | . . . Stealth | -11 -10 -10 --------- Run | Yrd Mat Min Distress Signals 1 | . 1 . Communications Jammed . | . . . Distress Signals . | . . . Times Spotted 40 | . 21 19 Peak Tracking Total 13 | . 4 13 Tactical Retreats . | . . . Traps | -11 -10 -10 ------- Run | Yrd Mat Min Traps Triggered . | . . . Indirectly . | . . . Trap Hack Attempts . | . . . Triggered . | . . . Disarmed . | . . . Reprogrammed . | . . . Reused . | . . . Traps Extracted . | . . . Installed . | . . . Triggered . | . . . Machines | -11 -10 -10 ---------- Run | Yrd Mat Min Machines Disabled . | . . . Max in Single Turn . | . . . Machines Repaired . | . . . Machines Dismantled . | . . . Machines Sabotaged . | . . . Overloaded Fab Kills . | . . . Hacking | -11 -10 -10 --------- Run | Yrd Mat Min Machines Accessed 8 | . 7 1 Terminals 7 | . 6 1 Fabricators . | . . . Repair Stations . | . . . Recycling Units 1 | . 1 . Scanalyzers . | . . . Garrison Access . | . . . Total Hacks 23 | . 21 2 Successful 9 | . 9 . Failed 14 | . 12 2 Catastrophic 3 | . 3 . Database Lockouts . | . . . Manual 14 | . 14 . Terminals 22 | . 20 2 Fabricators . | . . . Repair Stations . | . . . Recycling Units 1 | . 1 . Scanalyzers . | . . . Garrison Access . | . . . Terminal Hacks 4 | . 4 . Robot Analysis 1 | . 1 . Prototype ID Bank 1 | . 1 . Terminal Index 1 | . 1 . Registered Prototypes 1 | . 1 . Fabricator Hacks . | . . . Repair Station Hacks . | . . . Recycling Unit Hacks 1 | . 1 . Report Inventory 1 | . 1 . Scanalyzer . | . . . Garrison Access Hacks . | . . . Unauthorized Hacks 4 | . 4 . Terminals 4 | . 4 . Assimilate 1 | . 1 . Botnet 3 | . 3 . Fabricators . | . . . Repair Stations . | . . . Recycling Units . | . . . Scanalyzers . | . . . Garrison Access . | . . . Data Cores Recovered . | . . . Used . | . . . Hacking Detections 7 | . 6 1 Full Trace Events . | . . . Feedback Events . | . . . Feedback Blocked . | . . . Robot Schematics Acquired . | . . . Robots Built . | . . . Authchips . | . . . Time . | . . . Total Robot Build Rating . | . . . Part Schematics Acquired . | . . . Parts Built . | . . . Authchips . | . . . Time . | . . . Total Part Build Rating . | . . . Part Studies Acquired . | . . . Parts Repaired . | . . . Time . | . . . Parts Recycled . | . . . Recycled Matter . | . . . Retrieved Matter . | . . . Retrieved Components . | . . . Parts Scanalyzed . | . . . Part Schematics Acquired . | . . . Parts Damaged . | . . . Bothacking | -11 -10 -10 ------------ Run | Yrd Mat Min Used RIF Installer . | . . . Robots Hacked . | . . . Non-combat . | . . . Combat . | . . . Robot Hacks Applied . | . . . Relay Couplers Released . | . . . Fabnet Peak Effective % . | . . . Robots Rewired . | . . . Allies Hacked . | . . . Hacks Repelled . | . . . Allies | -11 -10 -10 -------- Run | Yrd Mat Min Total Allies 4 | . 1 3 Largest Group 3 | . 1 3 Highest-Rated Group 77 | . 10 77 Highest-Rated Ally 31 | . 10 31 Total Orders . | . . . Ally Attacks 7 | . . 7 Total Damage 64 | . . 64 Kills . | . . . Allies Corrupted . | . . . Allies Melted . | . . . Intel | -11 -10 -10 ------- Run | Yrd Mat Min Active Infowar (turns) 1097 | 5 1092 . Seismic 1097 | 5 1092 . Robot Analysis Total 1 | . 1 . Derelict Logs Recovered 2 | . . 2 Drone Launches . | . . . Drone Recoveries . | . . . Exploration | -11 -10 -10 ------------- Run | Yrd Mat Min Turns Passed 2233 | 220 1212 801 Spaces Moved 955 | 116 466 373 Core 8 | 7 . 1 Treads 730 | 109 466 155 Legs . | . . . Wheels 217 | . . 217 Hover . | . . . Flight . | . . . Fastest Speed 50 | 50 160 50 Average Speed 200 | 153 219 191 Slowest Speed 320 | 160 240 320 Overloaded Moves . | . . . Propulsion Burnouts . | . . . Robots Hopped . | . . . Potential Cave-ins . | . . . Cave-ins Triggered . | . . . Exploration Rate (%) 42 | 6 68 52 Regions Visited 2 Branch Regions 1 Pre-discovered Areas 1 | . . 1 Known Exits Taken . | . . . Unknown Exits Taken 2 | 1 1 . Scrap Searched . | . . . Spaces Dug . | . . . Terrain Destroyed 50 | . 7 43 Melee . | . . . Projectile . | . . . AOE 50 | . 7 43 Terrain Rammed . | . . . Walls Destroyed . | . . . Machines Disabled . | . . . Actions | -11 -10 -10 --------- Run | Yrd Mat Min Total 1114 | 135 562 417 Wait 21 | . 20 1 Move 953 | 115 465 373 Hop . | . . . Pick Up 16 | 2 8 6 Fast Attach 10 | 7 2 1 Attach 10 | . 4 6 Detach 2 | . 2 . Swap 7 | . 5 2 Drop 1 | . 1 . Fire 87 | 11 51 25 Melee . | . . . Ram . | . . . Kick . | . . . Crush 7 | . 4 3 Escape Stasis . | . . . Rewire . | . . . Trap . | . . . Miscellaneous . | . . . Route ------- -11/Scrapyard -10/Materials (discovered 2 exits: [*Mat] / *Min) -10/Mines (discovered 1 exit: [*Mat]) History --------- Turn | Location | Event 10 | -11/Scrapyard | Discovered new exit (range 15) 221 | -11/Scrapyard | Entered Materials 237 | -10/Materials | Discovered new exit (range 15) 313 | -10/Materials | Build established: Mutant 985 | -10/Materials | Discovered new exit (range 8) 1433 | -10/Materials | Entered Mines 1433 | -10/Mines | Accompanied by 1 ally 1496 | -10/Mines | Lost 3 parts (1n1u1w) 1582 | -10/Mines | Learned location of Mines (-9) 1650 | -10/Mines | Assembled infested the area 1707 | -10/Mines | Destroyed 15 combat bots 1712 | -10/Mines | Lost 3 parts (1p1n1u) 2073 | -10/Mines | Discovered new exit (range 8) 2076 | -10/Mines | Received a Mining Laser from a helpful Derelict 2226 | -10/Mines | Core integrity fell below 50% 2233 | -10/Mines | Core integrity fell below 20% 2233 | -10/Mines | Released all parts (3) 2234 | -10/Mines | Destroyed by D-53 Grenadier with Mini Grenade Launcher Last Messages --------------- 02076_ KB-E1G(g): "And why aren't you carrying a mining laser?! Certainly you don't want THEM to uncover you when the ceiling comes crashing down? Here, take my spare." 02079_ KB-E1G(g): "You're apparently new around these parts, I'll cover you." 02081_ KB-E1G(g): "Mining lasers are a lot more useful than you might think..." 02084_ Acquired Mining Laser. 02193_ K-01 Serf destroyed. 02200_ Acquired 12 matter. 02203_ Acquired Wheel. 02224_ Lgt. Ion Engine destroyed. 02225_ KB-E1G(g) destroyed. 02226_ The unstable cave ceiling collapses. 02227_ MN-4CH(g) destroyed. 02232_ Med. Laser destroyed. 02232_ Lgt. Treads destroyed. 02232_ Lgt. Ion Engine destroyed. 02232_ MD-WSJ(z) destroyed. 02232_ Com. Wheel destroyed. 02233_ Released Sml. Laser. 02233_ Released Imp. Heat Sink. 02233_ Released Hcp. Storage Unit. Map ----- +----------------------------------------------------+ | ?# #?????????????????# #?????????????? | | ?# #?????????????????#### #?????????????? | | ?# #????????????????????# #?????????????? | | ?# #???????????###??????# #?????????????? | | ?# #??????????## ##????# #?????????????? | | ?# % #??####????# #????# ####??????????? | | ## #### ###??# #????# ##?????????? | | #T ##??# #????# #?????????? | | ## ### #???# ##???# #?????????? | | ?# """ #?## #???# #???## #?????????? | | ?# """ #??# ##???# ##??## #?????????? | | ?# """ #??# #???## #### ##?????????? | | ?# #??# ##### ##??????????? | | ?# """ #??# ##???????????? | | ?# """ #??## ##????????????? | | ?# """ #???####### #?????????????? | | ?# #???????## #?????????????? | | ?# #??????## ##?????????????? | | ?## ####??????# ####??????????????? | | ??# ########??# ####?????????????????? | | ??# #??## ##???????????????????? | | ??######### #???## %= ##??????????????????? | | ??????????# #????# [ ##?????????????????? | | ??????????# #??### ! #???? ???????????? | | ??????????# #?## ![] ##??? ?????????? | | ??????????# #?# @ #?? ##???????? | | ??????????# ### #?# #???????? | | ??????????# ! ## ??????? | | ??????????# #### d ???????? | | ??????????# #??# d ????????? | | ??????????# #?# ??????????? | | ??????????# #?# ## # # # ## ??????????? | | ??????????# #?## ##?####### ##???????????? | | ??????????# #??###???????## ####?????????? | | ??????????# #??????####### # #?????????? | | ??????????# #?????## ## ##??????????? | | ??????????# ####### # #??????????? | | ?????????## ## ## #?????????? | | ?????????# #### #???????? | | ?????????# ##??# #??????? | | ?????????## ##???# ????? | | ??????????###### #????## ?????? | | ???????????????## ##??????# " ?????? | | ????????????????#####????????# # ?????? | | ??????????????????????????????## # ##??????? | | ????????????????????????????????###### ???????? | | ??????????????????????????????????????????????? | | | | | | | +----------------------------------------------------+ Best States ------------- Heat Dissipation 39 Energy Generation 10 Energy Capacity 250 Matter Stores 300 Matter Capacity 300 Sight Range 16 Terrain Scan Density 10 Armor Coverage 150 Evasion (%) 40 Recoil Reduction 2 Item Schematics ----------------- None Robot Schematics ------------------ None Fabricated ------------ Nothing Repaired ---------- Nothing Studied --------- None Alien Tech Used ----------------- None Achievements -------------- None Challenges ------------ None Game ------ Seed ResetHybridBarrier Manual? 0 Play Time 00:11:58 Cumulative 102.4 hours Start 2026.09.24 @ 17:42:49 End 2026.09.24 @ 17:54:44 Sessions 1 Manual Loads 0 Difficulty Rogue Special Mode None Game No. 89 Rogue 49 Adventurer 40 Explorer 0 Win Type - Total 5 Types 3/1/0/1/0/0/0/0/0/0 Lore% 47 Gallery% 49 Achievement% 43 Wizard Run 0 Options --------- Layout 0 ASCII 0 Keyboard 0 Movement Mouse Keybinds 0 Fullscreen 0 Font 16/SmallcapsGlow Map View 88x55 Zoom Use 0% Tactical HUD 1 Map Filters NONE Filters NONE Steam 1 RUN: c9f0fb51-eea6-479d-95b5-cf384400cdf2